bitfinex/quotes_SOLUSD_20250414
["timestamp","ask_amount","ask_price","bid_price","bid_amount"]
[1744635827704,43.41636227,134.44,134.41,7.4399]
[1744635827904,24.76671341,134.45,134.41,7.4399]
[1744635828108,25.88964886,134.46,134.42,0.14216157]
[1744635828109,32.00671341,134.46,134.42,0.14216157]
[1744635828804,24.76671341,134.45,134.42,0.14216157]
[1744635829003,24.76671341,134.44,134.38,0.14216157]
[1744635829209,24.76671341,134.43,134.38,24.90887498]
[1744635829413,7.24,134.46,134.4,24.90887498]
[1744635829581,32.00671341,134.46,134.42,0.14216157]
[1744635829912,32.00671341,134.46,134.42,32.34787498]
[1744635830391,7.24,134.46,134.42,32.34787498]
[1744635830702,32.00671341,134.46,134.42,7.58116157]
[1744635831010,7.24,134.46,134.42,32.34787498]
[1744635831913,32.00671341,134.46,134.42,7.58116157]
[1744635832102,7.24,134.46,134.42,32.34787498]
[1744635833332,32.00671341,134.46,134.42,7.58116157]
[1744635833625,24.76671341,134.45,134.42,0.14216157]
[1744635833918,24.76671341,134.45,134.42,7.58136157]
[1744635834094,14.6772,134.46,134.42,7.58136157]
[1744635834293,7.24,134.46,134.42,32.34807498]
[1744635835414,32.00671341,134.46,134.42,7.58136157]
[1744635835990,7.24,134.46,134.42,32.34807498]
[1744635837496,7.24,134.46,134.45,24.90887498]
[1744635837826,43.41636227,134.49,134.45,0.14216157]
[1744635838008,7.24,134.48,134.45,7.57966157]
[1744635838525,7.24,134.48,134.42,90.0088]
[1744635838526,24.76671341,134.46,134.42,90.0088]
[1744635838716,24.76671341,134.44,134.42,7.4391]
[1744635838926,24.76671341,134.46,134.43,0.14216157]
[1744635839229,24.76671341,134.45,134.41,7.4397]
[1744635839604,18.64964886,134.47,134.41,7.4397]
[1744635839605,24.76671341,134.46,134.42,0.14216157]
[1744635840023,18.64964886,134.47,134.43,7.4388]
[1744635840230,24.76671341,134.47,134.44,0.14216157]
[1744635840728,7.24,134.48,134.44,24.90887498]
[1744635840916,7.24,134.48,134.47,24.90887498]
[1744635841118,7.24,134.48,134.47,0.14216157]
[1744635841428,7.24,134.48,134.47,24.90887498]
[1744635841819,39.47071341,134.52,134.47,24.90887498]
[1744635842019,32.20171341,134.5,134.46,0.14216157]
[1744635842529,43.41636227,134.51,134.46,32.34587498]
[1744635842710,32.03671341,134.52,134.48,24.90887498]
[1744635843214,24.76671341,134.51,134.48,0.14216157]
[1744635843927,32.03671341,134.52,134.49,0.14216157]
[1744635844129,39.47051341,134.52,134.47,32.20291341]
[1744635844311,24.76671341,134.51,134.47,0.14216157]
[1744635844513,39.47051341,134.52,134.47,24.90887498]
[1744635845511,32.03671341,134.52,134.49,0.14216157]
[1744635846328,0.03,134.52,134.49,32.34427498]
[1744635846537,0.03,134.52,134.51,24.90887498]
[1744635846829,0.03,134.52,134.51,26.48337498]
[1744635847614,0.03,134.52,134.51,26.58337498]
[1744635848530,0.03,134.52,134.51,34.01767498]
[1744635848729,0.03,134.52,134.51,7.67646157]
[1744635849032,0.03,134.52,134.51,32.34317498]
[1744635850725,0.03,134.52,134.51,0.24216157]
[1744635850922,0.03,134.52,134.51,7.67646157]
[1744635851123,0.03,134.52,134.51,25.00887498]
[1744635851335,0.03,134.52,134.51,32.44317498]
[1744635851532,0.03,134.52,134.51,7.67646157]
[1744635851908,0.03,134.52,134.51,0.1]
[1744635852114,24.79671341,134.52,134.51,0.1]
[1744635853237,24.79671341,134.52,134.49,0.14216157]
[1744635853418,32.23051341,134.52,134.49,0.14216157]
[1744635853628,24.76671341,134.5,134.45,24.76671341]
[1744635853830,24.76671341,134.47,134.43,0.14216157]
[1744635854136,24.76671341,134.47,134.43,24.90887498]
[1744635854713,24.76671341,134.48,134.44,24.76671341]
[1744635855043,32.00671341,134.5,134.45,24.90887498]
[1744635855443,32.00671341,134.5,134.47,0.14216157]
[1744635855939,0.03,134.52,134.5,0.14216157]
[1744635856144,0.03,134.52,134.51,24.90887498]
[1744635857018,0.03,134.52,134.51,32.34317498]
[1744635861442,0.03,134.52,134.51,114.94317498]
[1744635861443,0.0001,134.52,134.51,114.94317498]
[1744635861940,0.0001,134.52,134.51,140.1363731]
[1744635862325,0.0001,134.52,134.51,114.94317498]
[1744635864342,0.0001,134.52,134.51,140.1363731]
[1744635864530,0.0001,134.52,134.51,114.94317498]
[1744635865025,0.0001,134.52,134.51,115.36965969]
[1744635865238,0.0001,134.52,134.51,140.1363731]
[1744635866234,0.0001,134.52,134.51,7.57646157]
[1744635867048,0.0001,134.52,134.51,0.14216157]
[1744635867222,0.0001,134.52,134.49,7.4352]
[1744635867417,7.1601,134.52,134.49,7.4352]
[1744635868124,31.92681341,134.52,134.49,7.4352]
[1744635868326,31.92681341,134.52,134.5,0.1]
[1744635868627,31.92681341,134.52,134.49,7.4352]
[1744635868835,31.92681341,134.52,134.48,7.57796157]
[1744635869031,7.1601,134.52,134.49,24.90887498]
[1744635869257,7.1601,134.52,134.51,0.14216157]
[1744635870149,7.1601,134.52,134.49,0.14216157]
[1744635870452,7.1601,134.52,134.5,7.4349]
[1744635872060,7.1601,134.52,134.51,0.14216157]
[1744635872529,7.1601,134.52,134.51,7.57646157]
[1744635873042,7.1601,134.52,134.48,18.5901]
[1744635873043,50.57646227,134.52,134.47,7.57876157]
[1744635873235,24.76671341,134.5,134.48,0.1]
[1744635873435,24.76671341,134.5,134.47,7.57876157]
[1744635873646,18.64964886,134.47,134.39,82.6]
[1744635873828,24.76671341,134.44,134.39,107.36671341]
[1744635874027,24.76671341,134.43,134.41,0.14216157]
[1744635874250,24.76671341,134.43,134.42,0.1]
[1744635874456,7.16,134.46,134.43,0.14216157]
[1744635874758,24.76671341,134.45,134.43,0.14216157]
[1744635875132,24.76671341,134.45,134.41,7.4397]
[1744635875328,24.76671341,134.44,134.42,0.14216157]
[1744635875941,24.76671341,134.43,134.41,0.14216157]
[1744635876461,24.76671341,134.42,134.39,7.58316157]
[1744635876757,24.76671341,134.41,134.39,0.14216157]
[1744635876944,24.76671341,134.41,134.39,0.24216157]
[1744635877142,24.76671341,134.4,134.39,0.1]
[1744635877644,43.41636227,134.4,134.39,0.1]
[1744635877832,43.41636227,134.4,134.37,0.063]
[1744635878031,43.41636227,134.38,134.37,0.063]
[1744635878842,51.00002384,134.38,134.37,0.063]
[1744635879153,51.28434698,134.38,134.37,0.063]
[1744635879841,0.42648471,134.36,134.34,0.063]
[1744635880044,75.34307568,134.35,134.34,0.063]
[1744635880366,25.80964886,134.35,134.34,0.063]
[1744635880537,50.57636227,134.35,134.34,0.063]
[1744635880738,58.01956227,134.35,134.34,0.063]
[1744635881159,83.21276039,134.35,134.34,0.063]
[1744635881361,18.79181043,134.34,134.31,0.063]
[1744635881558,43.41636227,134.32,134.31,0.063]
[1744635882442,50.05454698,134.32,134.31,0.063]
[1744635882842,57.49944698,134.32,134.31,0.063]
[1744635883150,140.39944698,134.32,134.31,0.063]
[1744635883346,140.39944698,134.32,134.29,0.063]
[1744635883347,19.07613357,134.31,134.29,0.063]
[1744635883564,19.07613357,134.29,134.26,0.063]
[1744635883768,43.41636227,134.27,134.26,0.063]
[1744635884271,18.64964886,134.29,134.26,0.063]
[1744635884455,43.41636227,134.27,134.26,0.063]
[1744635884662,24.76671341,134.27,134.26,0.063]
[1744635884949,43.41636227,134.29,134.26,7.5112]
[1744635885149,7.12,134.29,134.27,24.90887498]
[1744635885355,7.12,134.34,134.29,0.14216157]
[1744635885560,7.12,134.34,134.32,0.14216157]
[1744635886270,7.12,134.34,134.31,0.14216157]
[1744635886966,7.12,134.34,134.32,7.4449]
[1744635887173,24.76671341,134.38,134.33,24.90887498]
[1744635887365,7.12,134.38,134.36,24.90887498]
[1744635887580,7.12,134.38,134.37,24.90887498]
[1744635887879,7.12,134.42,134.38,0.14216157]
[1744635888049,31.88671341,134.42,134.38,0.14216157]
[1744635888449,7.12,134.42,134.4,0.14216157]
[1744635888645,7.12,134.42,134.4,24.90887498]
[1744635888870,7.12,134.42,134.4,0.14216157]
[1744635889073,7.12,134.42,134.41,7.4399]
[1744635889255,7.12,134.42,134.41,7.58206157]
[1744635890153,7.12,134.42,134.4,7.4403]
[1744635890557,7.12,134.43,134.4,32.20701341]
[1744635890875,263.94671341,134.48,134.42,24.76671341]
[1744635891073,24.76671341,134.45,134.41,7.4394]
[1744635891371,24.76671341,134.45,134.41,32.20611341]
[1744635891958,43.41636227,134.47,134.42,24.90887498]
[1744635892564,24.76671341,134.45,134.42,0.14216157]
[1744635892959,24.76671341,134.46,134.42,0.14216157]
[1744635893161,24.76671341,134.45,134.42,7.58096157]
[1744635893464,7.12,134.44,134.42,7.58096157]
[1744635894581,7.12,134.44,134.41,7.4397]
[1744635894891,24.76671341,134.43,134.39,0.14216157]
[1744635895252,24.76671341,134.42,134.39,7.58296157]
[1744635895473,24.76671341,134.42,134.36,0.14216157]
[1744635895681,43.41636227,134.43,134.39,0.14216157]
[1744635897080,43.41636227,134.43,134.39,24.76671341]
[1744635897493,43.41636227,134.43,134.4,7.4404]
[1744635897659,24.76671341,134.43,134.4,7.4404]
[1744635898579,24.76671341,134.43,134.39,32.20751341]
[1744635898752,24.76671341,134.43,134.39,7.4408]
[1744635898958,14.5583,134.44,134.38,24.90887498]
[1744635898959,24.76671341,134.41,134.38,7.58336157]
[1744635899161,24.76671341,134.4,134.37,0.14216157]
[1744635899367,31.88671341,134.39,134.36,7.4426]
[1744635899771,31.88671341,134.39,134.35,7.58516157]
[1744635900087,24.76671341,134.38,134.34,7.4436]
[1744635900288,14.5614,134.39,134.33,7.58636157]
[1744635900289,24.76671341,134.36,134.33,7.58636157]
[1744635900498,24.76671341,134.35,134.31,0.14216157]
[1744635900668,24.76671341,134.35,134.31,24.90887498]
[1744635900864,24.76671341,134.37,134.33,0.14216157]
[1744635901564,24.76671341,134.37,134.34,7.4437]
[1744635903466,24.76671341,134.36,134.33,7.58626157]
[1744635903877,24.76671341,134.36,134.32,7.4447]
[1744635904072,24.76671341,134.34,134.3,7.58816157]
[1744635904275,31.88671341,134.34,134.3,7.58816157]
[1744635904669,7.12,134.34,134.3,32.35487498]
[1744635905290,7.12,134.34,134.3,50.96987498]
[1744635905473,24.76671341,134.35,134.3,50.96987498]
[1744635905774,7.12,134.34,134.3,50.96987498]
[1744635905968,31.88671341,134.34,134.3,50.96987498]
[1744635906182,31.88671341,134.34,134.3,26.20316157]
[1744635906894,24.76671341,134.33,134.3,7.58816157]
[1744635907267,31.88671341,134.34,134.3,7.58816157]
[1744635907665,31.88671341,134.34,134.3,26.20316157]
[1744635907666,7.12,134.34,134.3,26.20316157]
[1744635907863,31.88671341,134.34,134.3,7.58816157]
[1744635908096,31.88671341,134.34,134.3,32.35487498]
[1744635908397,31.88671341,134.34,134.32,0.14216157]
[1744635908398,7.12,134.34,134.32,0.14216157]
[1744635908566,7.12,134.34,134.32,24.90887498]
[1744635908894,7.12,134.34,134.3,26.061]
[1744635908895,31.88671341,134.38,134.33,24.90887498]
[1744635909194,31.88671341,134.38,134.35,0.14216157]
[1744635909764,24.76671341,134.36,134.34,7.4437]
[1744635910589,7.12,134.38,134.34,7.4437]
[1744635910802,31.88671341,134.38,134.35,0.14216157]
[1744635911177,7.12,134.38,134.35,24.90887498]
[1744635911694,7.12,134.38,134.36,7.4426]
[1744635913874,7.12,134.38,134.36,32.20931341]
[1744635914070,115.61061341,134.46,134.37,24.90887498]
[1744635914295,31.88671341,134.45,134.4,24.90887498]
[1744635914485,7.12,134.45,134.4,24.90887498]
[1744635914688,31.88671341,134.45,134.4,24.90887498]
[1744635915077,24.76671341,134.44,134.4,24.90887498]
[1744635915276,7.12,134.45,134.42,24.90887498]
[1744635915494,7.12,134.45,134.44,24.76671341]
[1744635915680,7.12,134.45,134.44,7.58036157]
[1744635916490,7.12,134.45,134.44,32.34707498]
[1744635916978,7.01,134.49,134.45,0.14216157]
[1744635917183,7.01,134.49,134.45,24.90887498]
[1744635917380,7.01,134.49,134.47,0.14216157]
[1744635917599,7.01,134.49,134.48,0.14216157]
[1744635917894,0.03,134.49,134.47,7.4363]
[1744635919098,0.03,134.49,134.48,24.90887498]
[1744635919973,0.03,134.49,134.48,32.34487498]
[1744635920994,0.03,134.49,134.47,7.4364]
[1744635921392,0.03,134.49,134.48,0.14216157]
[1744635921609,0.03,134.49,134.48,24.90887498]
[1744635921990,0.03,134.49,134.48,32.34487498]
[1744635926594,0.0001,134.52,134.5,26.14216157]
[1744635926791,0.0001,134.52,134.51,24.90887498]
[1744635927487,0.03,134.57,134.51,24.90887498]
[1744635927488,0.03,134.57,134.55,0.56864628]
[1744635927699,0.03,134.57,134.56,24.90887498]
[1744635928304,0.03,134.57,134.56,32.34047498]
[1744635928509,0.03,134.58,134.57,2.20434628]
[1744635928706,0.03,134.58,134.57,51.7377731]
[1744635929100,0.03,134.58,134.57,26.97105969]
[1744635929412,0.03,134.58,134.57,24.90887498]
[1744635930196,0.03,134.6,134.57,51.34395969]
[1744635930391,0.03,134.6,134.59,24.90887498]
[1744635930895,0.03,134.6,134.59,0.14216157]
[1744635931101,0.03,134.6,134.59,24.90887498]
[1744635931500,0.03,134.6,134.59,25.33535969]
[1744635932222,0.03,134.6,134.59,115.36525969]
[1744635932511,0.03,134.63,134.6,0.56864628]
[1744635932713,0.03,134.63,134.62,24.90887498]
[1744635933302,0.03,134.63,134.62,0.14216157]
[1744635933502,24.79671341,134.63,134.6,0.14216157]
[1744635933702,0.03,134.63,134.6,24.90887498]
[1744635934088,0.03,134.63,134.62,24.90887498]
[1744635934288,0.03,134.63,134.62,32.33717498]
[1744635934613,0.03,134.63,134.62,0.14216157]
[1744635934803,0.03,134.63,134.61,0.14216157]
[1744635935304,0.03,134.63,134.61,24.90887498]
[1744635935497,0.03,134.63,134.62,24.90887498]
[1744635936215,0.03,134.63,134.62,32.33717498]
[1744635937090,0.03,134.63,134.62,0.14216157]
[1744635937296,24.79671341,134.63,134.61,0.14216157]
[1744635937503,24.76671341,134.62,134.61,0.14216157]
[1744635937702,31.75671341,134.63,134.61,0.14216157]
[1744635937930,31.75671341,134.63,134.58,32.19701341]
[1744635938103,31.75671341,134.63,134.59,0.14216157]
[1744635938304,6.99,134.63,134.61,0.14216157]
[1744635938510,31.75671341,134.63,134.61,0.14216157]
[1744635939527,6.99,134.63,134.61,0.14216157]
[1744635940012,6.99,134.63,134.58,0.14216157]
[1744635940223,6.99,134.63,134.61,0.14216157]
[1744635940440,6.99,134.63,134.61,32.33757498]
[1744635940648,0.03,134.63,134.62,24.90887498]
[1744635941922,0.03,134.63,134.62,25.33535969]
[1744635942302,0.03,134.63,134.62,32.76365969]
[1744635942822,0.03,134.63,134.62,0.14216157]
[1744635942999,31.75671341,134.63,134.59,0.14216157]
[1744635943193,6.99,134.63,134.62,24.90887498]
[1744635943616,0.03,134.63,134.62,24.90887498]
[1744635944344,0.03,134.63,134.62,32.33717498]
[1744635945126,9.5438432,134.67,134.63,0.14216157]
[1744635945326,9.5438432,134.67,134.62,51.19219812]
[1744635945327,9.5438432,134.67,134.66,0.14216157]
[1744635945938,9.5438432,134.67,134.65,0.14216157]
[1744635946440,9.5438432,134.67,134.65,7.56846157]
[1744635946647,9.5438432,134.67,134.65,32.33517498]
[1744635946941,9.5438432,134.67,134.65,0.14216157]
[1744635947146,9.5438432,134.67,134.65,7.56866157]
[1744635947333,9.5438432,134.67,134.65,32.33537498]
[1744635948126,2.5838432,134.67,134.66,24.90887498]
[1744635948650,2.5838432,134.67,134.66,0.14216157]
[1744635951258,20.15174886,134.66,134.6,0.14216157]
[1744635951432,24.76671341,134.61,134.58,0.14216157]
[1744635952750,31.72671341,134.6,134.58,0.14216157]
[1744635953250,6.96,134.6,134.58,0.14216157]
[1744635953747,31.72671341,134.6,134.55,7.4319]
[1744635953938,31.72671341,134.6,134.56,0.14216157]
[1744635954853,39.15641341,134.6,134.56,0.14216157]
[1744635955068,24.76671341,134.58,134.54,0.063]
[1744635955232,24.76671341,134.57,134.54,0.20516157]
[1744635955439,24.76671341,134.59,134.54,24.97187498]
[1744635955749,31.72671341,134.6,134.57,0.14216157]
[1744635957147,6.96,134.6,134.57,0.14216157]
[1744635957536,6.96,134.6,134.57,32.33967498]
[1744635957852,31.72671341,134.6,134.55,24.76671341]
[1744635958043,24.76671341,134.58,134.54,0.063]
[1744635958351,24.76671341,134.55,134.54,0.063]
[1744635958852,24.76671341,134.56,134.54,0.063]
[1744635959547,24.76671341,134.57,134.54,0.063]
[1744635959750,44.18314886,134.6,134.54,0.063]
[1744635959751,24.76671341,134.59,134.56,0.14216157]
[1744635959942,6.96,134.6,134.56,0.14216157]
[1744635960137,24.76671341,134.59,134.56,0.14216157]
[1744635960648,24.76671341,134.58,134.54,0.20516157]
[1744635960849,24.76671341,134.57,134.54,0.063]
[1744635961052,24.76671341,134.55,134.54,0.063]
[1744635961363,31.72671341,134.55,134.54,0.063]
[1744635961853,39.15881341,134.55,134.54,0.063]
[1744635962348,31.72671341,134.55,134.54,0.063]
[1744635963545,39.15881341,134.55,134.54,0.063]
[1744635964243,57.80846227,134.55,134.54,0.063]
[1744635964434,59.34096227,134.55,134.54,0.063]
[1744635965063,59.76744698,134.55,134.54,0.063]
[1744635965252,84.53416039,134.55,134.54,0.063]
[1744635965754,19.07613357,134.54,134.48,0.063]
[1744635966057,43.84284698,134.49,134.48,0.063]
[1744635966234,20.41021043,134.48,134.46,0.063]
[1744635966435,74.55807568,134.47,134.46,0.063]
[1744635967561,57.22796227,134.47,134.46,0.063]
[1744635968256,82.42116039,134.47,134.46,0.063]
[1744635968956,81.99467568,134.47,134.46,0.063]
[1744635969254,82.42116039,134.47,134.46,0.063]
[1744635972057,81.99467568,134.47,134.46,0.063]
[1744635972240,49.79136227,134.47,134.46,0.063]
[1744635972441,25.02464886,134.47,134.46,0.063]
[1744635972640,57.22796227,134.47,134.46,0.063]
[1744635973666,81.99467568,134.47,134.46,0.063]
[1744635974249,80.49467568,134.47,134.46,0.063]
[1744635975464,55.19136227,134.47,134.46,0.063]
[1744635976464,62.62796227,134.47,134.46,0.063]
[1744635977474,87.82116039,134.47,134.46,0.063]
[1744635977686,87.82116039,134.47,134.4,0.063]
[1744635977687,24.76671341,134.41,134.4,0.063]
[1744635977861,31.66671341,134.41,134.4,0.063]
[1744635978677,39.10661341,134.41,134.4,0.063]
[1744635978867,57.75626227,134.41,134.4,0.063]
[1744635979258,32.98954886,134.41,134.4,0.063]
[1744635979575,50.31636227,134.41,134.4,0.063]
[1744635980384,6.9,134.41,134.4,0.063]
[1744635980674,31.66671341,134.41,134.4,0.063]
[1744635980876,82.52297568,134.41,134.4,0.063]
[1744635981055,57.75626227,134.41,134.4,0.063]
[1744635981255,90.63623725,134.41,134.4,0.063]
[1744635981462,18.79181043,134.4,134.32,0.063]
[1744635981673,24.76671341,134.35,134.32,0.063]
[1744635981986,6.9,134.35,134.32,0.063]
[1744635982184,31.66671341,134.35,134.32,0.063]
[1744635982372,31.66671341,134.35,134.32,7.5077]
[1744635983166,24.76671341,134.33,134.32,0.063]
[1744635983984,43.41636227,134.33,134.32,0.063]
[1744635984180,18.79181043,134.32,134.26,0.063]
[1744635984371,24.76671341,134.27,134.26,0.063]
[1744635984588,31.66671341,134.27,134.26,0.063]
[1744635986094,39.11431341,134.27,134.26,0.063]
[1744635986394,31.66671341,134.27,134.26,0.063]
[1744635987699,39.11431341,134.27,134.26,0.063]
[1744635988166,31.66671341,134.27,134.26,0.063]
[1744635988878,57.76396227,134.27,134.26,0.063]
[1744635990585,31.66671341,134.27,134.26,0.063]
[1744635990774,6.9,134.27,134.26,0.063]
[1744635990973,57.76396227,134.27,134.26,0.063]
[1744635991583,50.31636227,134.27,134.26,0.063]
[1744635992191,57.76396227,134.27,134.26,0.063]
[1744635994676,57.90612384,134.27,134.26,0.063]
[1744635995473,63.97392384,134.27,134.26,0.063]
[1744635995995,18.79181043,134.24,134.23,0.063]
[1744635996194,0.28432314,134.23,134.22,0.063]
[1744635996493,0.28432314,134.23,134.2,0.063]
[1744635996494,18.79181043,134.22,134.2,0.063]
[1744635996798,50.74284698,134.21,134.2,0.063]
[1744635996973,50.45852384,134.21,134.2,0.063]
[1744635997903,58.19384698,134.21,134.2,0.063]
[1744635998403,58.19384698,134.21,134.14,0.063]
[1744635998404,18.64964886,134.16,134.14,0.063]
[1744635998587,50.31636227,134.15,134.14,0.063]
[1744635998981,50.45852384,134.15,134.14,0.063]
[1744635999176,50.31636227,134.15,134.14,0.063]
[1744635999376,50.45852384,134.15,134.14,0.063]
[1744635999801,58.19714698,134.15,134.14,0.063]
[1744636000783,0.28432314,134.11,134.05,0.14216157]
[1744636000997,18.64964886,134.09,134.05,0.14216157]
[1744636001303,24.76671341,134.06,134.05,0.14216157]
[1744636001674,6.9,134.06,134.05,0.14216157]
[1744636001873,18.64964886,134.05,134.04,0.063]
[1744636002111,24.76671341,134.05,134.04,0.063]
[1744636002484,43.41636227,134.05,134.04,0.063]
[1744636002695,31.66671341,134.05,134.04,0.063]
[1744636003497,50.31636227,134.05,134.04,0.063]
[1744636004803,24.76671341,134.08,134.05,0.14216157]
[1744636004988,6.92,134.06,134.05,0.14216157]
[1744636005399,18.64964886,134.08,134.06,0.14216157]
[1744636005596,6.9,134.07,134.05,0.14216157]
[1744636005803,18.64964886,134.05,134.04,0.063]
[1744636005998,43.41636227,134.05,134.04,0.063]
[1744636007516,50.87626227,134.05,134.04,0.063]
[1744636007919,75.78513725,134.05,134.04,0.063]
[1744636008085,76.06946039,134.05,134.04,0.063]
[1744636008289,51.01842384,134.05,134.04,0.063]
[1744636008709,76.06946039,134.05,134.04,0.063]
[1744636008909,75.78513725,134.05,134.04,0.063]
[1744636009597,75.64297568,134.05,134.04,0.063]
[1744636009810,43.41636227,134.05,134.04,0.063]
[1744636010121,57.77626227,134.05,134.04,0.063]
[1744636011794,57.91842384,134.05,134.04,0.063]
[1744636012017,82.68513725,134.05,134.04,0.063]
[1744636012519,57.91842384,134.05,134.04,0.063]
[1744636014100,50.87626227,134.05,134.04,0.063]
[1744636014411,50.31636227,134.05,134.04,0.063]
[1744636014619,25.54964886,134.05,134.04,0.063]
[1744636014836,50.31636227,134.05,134.04,0.063]
[1744636016027,6.9,134.05,134.04,0.063]
[1744636016204,31.66671341,134.05,134.04,0.063]
[1744636016719,50.31636227,134.05,134.04,0.063]
[1744636016909,6.9,134.05,134.04,0.063]
[1744636018495,257.24671341,134.06,134.04,0.20516157]
[1744636018699,6.9,134.08,134.05,24.76671341]
[1744636018896,24.76671341,134.09,134.04,24.97187498]
[1744636019699,24.76671341,134.09,134.04,32.43177498]
[1744636020098,24.76671341,134.05,134.04,0.063]
[1744636020322,24.76671341,134.09,134.04,24.82971341]
[1744636020519,0.14216157,134.14,134.04,24.82971341]
[1744636020520,88.982,134.16,134.09,0.14216157]
[1744636020729,82.9,134.16,134.11,0.14216157]
[1744636020931,0.063,134.17,134.11,0.14216157]
[1744636020932,0.063,134.17,134.14,0.14216157]
[1744636021100,24.76671341,134.15,134.1,24.76671341]
[1744636021301,24.76671341,134.11,134.06,6.5088]
[1744636021512,24.76671341,134.09,134.07,0.14216157]
[1744636021734,24.76671341,134.12,134.09,0.14216157]
[1744636021911,24.76671341,134.11,134.09,0.14216157]
[1744636022107,24.76671341,134.1,134.08,0.14216157]
[1744636022305,127.64184886,134.14,134.08,0.24216157]
[1744636022512,24.76671341,134.1,134.08,0.24216157]
[1744636022835,24.76671341,134.09,134.08,0.1]
[1744636023221,24.76671341,134.11,134.08,0.1]
[1744636023403,24.76671341,134.1,134.07,7.60086157]
[1744636023836,24.76671341,134.11,134.07,7.60086157]
[1744636024213,24.76671341,134.11,134.08,0.1]
[1744636024415,24.76671341,134.15,134.1,24.76671341]
[1744636024637,107.72971341,134.17,134.12,24.90887498]
[1744636024839,107.72971341,134.17,134.15,0.14216157]
[1744636024840,0.063,134.17,134.15,0.14216157]
[1744636025166,0.063,134.17,134.16,24.90887498]
[1744636025443,0.063,134.17,134.14,24.76671341]
[1744636025603,24.82971341,134.17,134.14,7.59696157]
[1744636025805,0.063,134.17,134.14,32.36367498]
[1744636027162,0.063,134.17,134.14,7.59696157]
[1744636027325,0.063,134.17,134.16,24.90887498]
[1744636027654,24.82971341,134.17,134.13,58.22191341]
[1744636027836,24.82971341,134.17,134.14,0.24216157]
[1744636028031,0.063,134.17,134.14,25.00887498]
[1744636028334,0.063,134.17,134.16,25.19319812]
[1744636029453,0.063,134.17,134.16,0.14216157]
[1744636029655,0.063,134.17,134.16,7.59586157]
[1744636030450,0.063,134.17,134.16,0.14216157]
[1744636030665,0.063,134.17,134.16,0.24216157]
[1744636031339,68.24607568,134.17,134.16,0.1]
[1744636031530,68.24607568,134.17,134.1,0.14216157]
[1744636031732,24.76671341,134.12,134.1,0.14216157]
[1744636032134,18.64964886,134.15,134.1,0.14216157]
[1744636032135,24.76671341,134.11,134.1,0.14216157]
[1744636033329,7.4544,134.15,134.09,24.90887498]
[1744636033525,24.76671341,134.14,134.09,24.90887498]
[1744636033761,24.76671341,134.13,134.09,32.36647498]
[1744636034277,24.76671341,134.14,134.1,0.28432314]
[1744636034449,0.063,134.17,134.14,0.42648471]
[1744636034645,0.063,134.17,134.15,24.76671341]
[1744636035036,0.063,134.17,134.16,50.1020731]
[1744636035338,0.063,134.17,134.16,25.33535969]
[1744636035542,0.063,134.17,134.16,0.14216157]
[1744636036367,0.063,134.17,134.16,32.78905969]
[1744636036878,0.063,134.17,134.16,0.14216157]
[1744636037937,0.063,134.17,134.16,32.64689812]
[1744636038139,0.063,134.17,134.16,32.78905969]
[1744636038362,0.063,134.17,134.16,24.90887498]
[1744636038868,0.063,134.17,134.16,32.64689812]
[1744636039464,0.063,134.17,134.16,0.14216157]
[1744636039769,0.063,134.17,134.16,7.59586157]
[1744636039945,0.063,134.17,134.16,32.36257498]
[1744636041358,0.063,134.17,134.16,32.78905969]
[1744636041864,0.063,134.17,134.16,57.5557731]
[1744636042366,0.063,134.17,134.16,32.78905969]
[1744636042563,0.063,134.17,134.16,57.5557731]
[1744636044372,0.063,134.17,134.16,32.78905969]
[1744636044868,0.063,134.17,134.16,57.5557731]
[1744636045074,6.483,134.2,134.17,0.42648471]
[1744636045266,24.82971341,134.23,134.19,0.42648471]
[1744636045450,24.76671341,134.21,134.19,0.14216157]
[1744636045966,24.76671341,134.2,134.17,0.14216157]
[1744636046559,32.21801341,134.21,134.18,0.1]
[1744636046860,24.76671341,134.2,134.18,0.1]